fUST/lending_fUST_20241115
["ID","MTS","AMOUNT","RATE_DAILY","PERIOD"]
[342230285,1731603036867,-500.0,0.00016773,2]
[342230286,1731603036877,-500.0,0.00016773,2]
[342230287,1731603036887,-390.23098693,0.00016886,2]
[342230288,1731603036897,-1000.0,0.00016886,2]
[342230289,1731603036907,-500.0,0.00016986,2]
[342230290,1731603036917,-1048.21,0.00016986,2]
[342230291,1731603036931,-178.60848131,0.00016986,2]
[342230292,1731603036941,-500.0,0.00016986,2]
[342230293,1731603036951,-500.0,0.00016986,2]
[342230294,1731603036960,-500.0,0.00016986,2]
[342230295,1731603036970,-500.0,0.00016986,2]
[342230296,1731603036980,-500.0,0.00016986,2]
[342230297,1731603036990,-500.0,0.00016986,2]
[342230298,1731603037000,-614.69,0.00016986,2]
[342230299,1731603037009,-500.0,0.00016986,2]
[342230300,1731603037018,-500.0,0.00016986,2]
[342230301,1731603037028,-500.0,0.00016986,2]
[342230302,1731603037037,-500.0,0.00016986,2]
[342230303,1731603037047,-500.0,0.00016986,2]
[342230304,1731603037056,-500.0,0.00016986,2]
[342230305,1731603037066,-500.0,0.00016986,2]
[342230306,1731603037075,-827.97,0.00016986,2]
[342230307,1731603037086,-734.3,0.00016986,2]
[342230308,1731603037095,-500.0,0.00016986,2]
[342230309,1731603037105,-500.0,0.00016986,2]
[342230310,1731603037114,-500.0,0.00016986,2]
[342230311,1731603037124,-500.0,0.00016986,2]
[342230312,1731603037133,-704.81,0.00016986,2]
[342230313,1731603037143,-500.0,0.00016986,2]
[342230314,1731603037152,-629.85,0.00016986,2]
[342230315,1731603037162,-500.0,0.00016986,2]
[342230316,1731603037176,-762.71,0.00016986,2]
[342230317,1731603037186,-500.0,0.00016986,2]
[342230318,1731603037195,-616.58,0.00016986,2]
[342230319,1731603037205,-500.0,0.00016986,2]
[342230320,1731603037214,-500.0,0.00016986,2]
[342230321,1731603037223,-500.0,0.00016986,2]
[342230322,1731603037233,-500.0,0.00016986,2]
[342230323,1731603037242,-950.34,0.00016986,2]
[342230324,1731603037252,-681.12,0.00016986,2]
[342230325,1731603037262,-500.0,0.00016986,2]
[342230326,1731603037271,-500.0,0.00016986,2]
[342230327,1731603037281,-712.01,0.00016986,2]
[342230328,1731603037291,-500.0,0.00016986,2]
[342230329,1731603037300,-500.0,0.00016986,2]
[342230330,1731603037310,-500.0,0.00016986,2]
[342230331,1731603037324,-500.0,0.00016986,2]
[342230332,1731603037465,-500.0,0.00016986,2]
[342230333,1731603037475,-500.0,0.00016986,2]
[342230334,1731603037487,-500.0,0.00016986,2]
[342230335,1731603037496,-500.0,0.00016986,2]
[342230337,1731603037505,-183.3647974,0.00016986,2]
[342230339,1731603037515,-500.0,0.00016986,2]
[342230340,1731603037525,-500.0,0.00016986,2]
[342230341,1731603037534,-500.0,0.00016986,2]
[342230342,1731603037543,-2386.5,0.00016986,2]
[342230343,1731603037553,-746.36,0.00016986,2]
[342230344,1731603037562,-842.98,0.00016986,2]
[342230345,1731603037571,-500.0,0.00016986,2]
[342230346,1731603037581,-500.0,0.00016986,2]
[342230347,1731603037591,-500.0,0.00016986,2]
[342230348,1731603037600,-500.0,0.00016986,2]
[342230349,1731603037609,-500.0,0.00016986,2]
[342230351,1731603037618,-500.0,0.00016986,2]
[342230352,1731603037628,-500.0,0.00016986,2]
[342230353,1731603037637,-500.0,0.00016986,2]
[342230354,1731603037647,-685.34,0.00016986,2]
[342230355,1731603037656,-1157.25,0.00016986,2]
[342230356,1731603037665,-679.68,0.00016986,2]
[342230357,1731603037677,-500.0,0.00016986,2]
[342230358,1731603037686,-1344.57,0.00016986,2]
[342230359,1731603037695,-1644.49,0.00016986,2]
[342230360,1731603037704,-500.0,0.00016986,2]
[342230361,1731603037713,-500.0,0.00016986,2]
[342230362,1731603037722,-500.0,0.00016986,2]
[342230364,1731603037732,-500.0,0.00016986,2]
[342230365,1731603037741,-649.08,0.00016986,2]
[342230366,1731603037750,-522.7,0.00016986,2]
[342230367,1731603037759,-500.0,0.00016986,2]
[342230368,1731603037768,-886.49,0.00016986,2]
[342230369,1731603037778,-500.0,0.00016986,2]
[342230370,1731603037787,-1843.99,0.00016986,2]
[342230371,1731603037796,-500.0,0.00016986,2]
[342230372,1731603037805,-500.0,0.00016986,2]
[342230373,1731603037814,-811.86,0.00016986,2]
[342230374,1731603037823,-500.0,0.00016986,2]
[342230375,1731603037832,-500.0,0.00016986,2]
[342230376,1731603037841,-841.74,0.00016986,2]
[342230378,1731603037850,-500.0,0.00016986,2]
[342230380,1731603037863,-1556.87,0.00016986,2]
[342230381,1731603037874,-823.02,0.00016986,2]
[342230382,1731603037884,-500.0,0.00016986,2]
[342230383,1731603037893,-613.53931776,0.00016986,2]
[342230384,1731603037902,-500.0,0.00016986,2]
[342230386,1731603037911,-500.0,0.00016986,2]
[342230387,1731603037923,-500.0,0.00016986,2]
[342230388,1731603037933,-500.0,0.00016986,2]
[342230389,1731603037942,-500.0,0.00016986,2]
[342230390,1731603037951,-500.0,0.00016986,2]
[342230391,1731603037961,-500.0,0.00016986,2]
[342230393,1731603037970,-500.0,0.00016986,2]
[342230395,1731603037979,-200.0,0.00016986,2]
[342230396,1731603037989,-785.94,0.00016986,2]
[342230398,1731603037998,-597.24,0.00016986,2]
[342230399,1731603038007,-500.0,0.00016986,2]
[342230400,1731603038017,-500.0,0.00016986,2]
[342230401,1731603038026,-19346.42,0.00016986,2]
[342230403,1731603038035,-500.0,0.00016986,2]
[342230405,1731603038044,-500.0,0.00016986,2]
[342230407,1731603038053,-500.0,0.00016986,2]
[342230408,1731603038063,-686.86,0.00016986,2]
[342230410,1731603038072,-500.0,0.00016986,2]
[342230411,1731603038081,-500.0,0.00016986,2]
[342230412,1731603038090,-500.0,0.00016986,2]
[342230413,1731603038099,-547.45815767,0.00016986,2]
[342230414,1731603038108,-500.0,0.00016986,2]
[342230415,1731603038122,-500.0,0.00016986,2]
[342230416,1731603038132,-1898.37,0.00016986,2]
[342230417,1731603038142,-500.0,0.00016986,2]
[342230418,1731603038152,-1643.0,0.00016986,2]
[342230419,1731603038161,-500.0,0.00016986,2]
[342230420,1731603038170,-893.41,0.00016986,2]
[342230421,1731603038181,-742.64,0.00016986,2]
[342230422,1731603038191,-733.54,0.00016986,2]
[342230423,1731603038200,-500.0,0.00016986,2]
[342230424,1731603038209,-500.0,0.00016986,2]
[342230425,1731603038219,-500.0,0.00016986,2]
[342230426,1731603038229,-500.0,0.00016986,2]
[342230427,1731603038238,-905.74,0.00016986,2]
[342230428,1731603038247,-500.0,0.00016986,2]
[342230429,1731603038257,-3139.9,0.00016986,2]
[342230430,1731603038267,-500.0,0.00016986,2]
[342230431,1731603038277,-892.41,0.00016986,2]
[342230432,1731603038286,-500.0,0.00016986,2]
[342230433,1731603038296,-697.22,0.00016986,2]
[342230434,1731603038307,-500.0,0.00016986,2]
[342230435,1731603038316,-2428.1,0.00016986,2]
[342230436,1731603038329,-1345.81,0.00016986,2]
[342230437,1731603038339,-500.0,0.00016986,2]
[342230438,1731603038349,-1426.31,0.00016986,2]
[342230439,1731603038359,-500.0,0.00016986,2]
[342230440,1731603038369,-656.52,0.00016986,2]
[342230441,1731603038379,-633.54,0.00016986,2]
[342230442,1731603038390,-623.9871476,0.00016986,2]
[342230443,1731603038402,-615.67,0.00016986,2]
[342230444,1731603038412,-874.04,0.00016986,2]
[342230445,1731603038425,-500.0,0.00016986,2]
[342230446,1731603038435,-645.31,0.00016986,2]
[342230447,1731603038445,-895.76,0.00016986,2]
[342230448,1731603038455,-500.0,0.00016986,2]
[342230449,1731603038466,-4076.92,0.00016986,2]
[342230450,1731603038475,-500.0,0.00016986,2]
[342230451,1731603038485,-508.06,0.00016986,2]
[342230452,1731603038495,-500.0,0.00016986,2]
[342230453,1731603038504,-500.0,0.00016986,2]
[342230454,1731603038514,-500.0,0.00016986,2]
[342230455,1731603038524,-7324.13,0.00016986,2]
[342230456,1731603038534,-1887.83,0.00016986,2]
[342230457,1731603038543,-500.0,0.00016986,2]
[342230458,1731603038553,-936.41,0.00016986,2]
[342230459,1731603038562,-708.71,0.00016986,2]
[342230460,1731603038572,-1038.09,0.00016986,2]
[342230461,1731603038581,-500.0,0.00016986,2]
[342230462,1731603038591,-3771.07,0.00016986,2]
[342230463,1731603038606,-821.87,0.00016986,2]
[342230464,1731603038624,-653.47,0.00016986,2]
[342230465,1731603038635,-547.05,0.00016986,2]
[342230466,1731603038650,-500.0,0.00016986,2]
[342230467,1731603038659,-5751.7,0.00016986,2]
[342230468,1731603038669,-500.0,0.00016986,2]
[342230469,1731603038681,-500.0,0.00016986,2]
[342230470,1731603038690,-673.32,0.00016986,2]
[342230471,1731603038700,-500.0,0.00016986,2]
[342230472,1731603038710,-500.0,0.00016986,2]
[342230473,1731603038719,-1668.19,0.00016986,2]
[342230474,1731603038729,-500.0,0.00016986,2]
[342230475,1731603038738,-5808.81,0.00016986,2]
[342230476,1731603038748,-992.56,0.00016986,2]
[342230477,1731603038758,-500.0,0.00016986,2]
[342230478,1731603038767,-551.42944227,0.00017021,2]
[342230479,1731603038776,-1000.0,0.00017021,2]
[342230480,1731603038786,-8078.35158196,0.00017022,2]
[342230481,1731603038795,-150.112233,0.000171,2]
[342230482,1731603038805,-1434.86571224,0.0001716,2]
[342230483,1731603038814,-390.23098693,0.0001716,2]
[342230484,1731603038823,-150.112233,0.000172,2]
[342230485,1731603038833,-151.809455,0.0001726,2]
[342230486,1731603038843,-151.0,0.0001726,2]
[342230487,1731603038852,-151.0,0.0001726,2]
[342230488,1731603038861,-151.0,0.0001726,2]
[342230489,1731603038871,-151.0,0.0001726,2]
[342230490,1731603038880,-551.7783834,0.0001726,2]
[342230491,1731603038889,-1048.21,0.0001726,2]
[342230492,1731603038899,-500.0,0.0001726,2]
[342230493,1731603038908,-500.0,0.0001726,2]
[342230494,1731603038917,-500.0,0.0001726,2]
[342230495,1731603038930,-500.0,0.0001726,2]
[342230496,1731603038940,-591.25551454,0.0001726,2]
[342230497,1731603038949,-500.0,0.0001726,2]
[342230498,1731603038960,-614.69,0.0001726,2]
[342230499,1731603038970,-500.0,0.0001726,2]
[342230500,1731603038980,-500.0,0.0001726,2]
[342230501,1731603038990,-500.0,0.0001726,2]
[342230502,1731603039000,-500.0,0.0001726,2]
[342230503,1731603039009,-500.0,0.0001726,2]
[342230504,1731603039019,-500.0,0.0001726,2]
[342230505,1731603039029,-500.0,0.0001726,2]
[342230506,1731603039038,-827.97,0.0001726,2]
[342230507,1731603039048,-734.3,0.0001726,2]
[342230508,1731603039059,-500.0,0.0001726,2]
[342230509,1731603039068,-500.0,0.0001726,2]
[342230510,1731603039078,-500.0,0.0001726,2]
[342230511,1731603039087,-500.0,0.0001726,2]
[342230512,1731603039097,-704.81,0.0001726,2]
[342230513,1731603039106,-500.0,0.0001726,2]
[342230514,1731603039115,-629.85,0.0001726,2]
[342230515,1731603039125,-647.4525821,0.0001726,2]
[342230516,1731603039135,-762.71,0.0001726,2]
[342230517,1731603039144,-500.0,0.0001726,2]
[342230518,1731603039154,-616.58,0.0001726,2]
[342230519,1731603039163,-500.0,0.0001726,2]
[342230520,1731603039176,-500.0,0.0001726,2]
[342230521,1731603039186,-500.0,0.0001726,2]
[342230522,1731603039195,-500.0,0.0001726,2]
[342230523,1731603039205,-950.34,0.0001726,2]
[342230524,1731603039215,-681.12,0.0001726,2]
[342230525,1731603039224,-500.0,0.0001726,2]
[342230526,1731603039233,-500.0,0.0001726,2]
[342230527,1731603039243,-712.01,0.0001726,2]
[342230528,1731603039253,-500.0,0.0001726,2]
[342230529,1731603039262,-500.0,0.0001726,2]
[342230530,1731603039271,-500.0,0.0001726,2]
[342230531,1731603039281,-500.0,0.0001726,2]
[342230532,1731603039290,-500.0,0.0001726,2]
[342230533,1731603039299,-500.0,0.0001726,2]
[342230534,1731603039308,-500.0,0.0001726,2]
[342230535,1731603039318,-500.0,0.0001726,2]
[342230536,1731603039332,-500.0,0.0001726,2]
[342230537,1731603039342,-500.0,0.0001726,2]
[342230538,1731603039351,-500.0,0.0001726,2]
[342230539,1731603039361,-2386.5,0.0001726,2]
[342230540,1731603039372,-746.36,0.0001726,2]
[342230541,1731603039381,-842.98,0.0001726,2]
[342230542,1731603039391,-500.0,0.0001726,2]
[342230543,1731603039402,-500.0,0.0001726,2]
[342230544,1731603039411,-500.0,0.0001726,2]
[342230545,1731603039423,-500.0,0.0001726,2]
[342230546,1731603039434,-500.0,0.0001726,2]
[342230547,1731603039444,-500.0,0.0001726,2]
[342230548,1731603039454,-500.0,0.0001726,2]
[342230549,1731603039463,-500.0,0.0001726,2]
[342230550,1731603039473,-685.34,0.0001726,2]
[342230551,1731603039482,-1157.25,0.0001726,2]
[342230552,1731603039491,-679.68,0.0001726,2]
[342230553,1731603039500,-500.0,0.0001726,2]
[342230554,1731603039510,-1344.57,0.0001726,2]
[342230555,1731603039519,-1644.49,0.0001726,2]
[342230556,1731603039529,-500.0,0.0001726,2]
[342230557,1731603039539,-500.0,0.0001726,2]
[342230558,1731603039548,-500.0,0.0001726,2]
[342230559,1731603039557,-500.0,0.0001726,2]
[342230560,1731603039567,-649.08,0.0001726,2]
[342230561,1731603039577,-522.7,0.0001726,2]
[342230562,1731603039587,-500.0,0.0001726,2]
[342230563,1731603039596,-886.49,0.0001726,2]
[342230564,1731603039606,-500.0,0.0001726,2]
[342230565,1731603039615,-1843.99,0.0001726,2]
[342230566,1731603039624,-500.0,0.0001726,2]
[342230567,1731603039633,-500.0,0.0001726,2]
[342230568,1731603039643,-811.86,0.0001726,2]
[342230569,1731603039652,-500.0,0.0001726,2]
[342230570,1731603039662,-500.0,0.0001726,2]
[342230571,1731603039673,-841.74,0.0001726,2]
[342230572,1731603039682,-500.0,0.0001726,2]
[342230573,1731603039692,-1556.87,0.0001726,2]
[342230574,1731603039702,-823.02,0.0001726,2]
[342230576,1731603039711,-500.0,0.0001726,2]
[342230578,1731603039728,-400.59160968,0.0001726,2]
[342230579,1731603039739,-500.0,0.0001726,2]
[342230581,1731603039748,-500.0,0.0001726,2]
[342230583,1731603039758,-500.0,0.0001726,2]
[342230585,1731603039767,-500.0,0.0001726,2]
[342230586,1731603039776,-500.0,0.0001726,2]
[342230587,1731603039787,-500.0,0.0001726,2]
[342230588,1731603039795,-500.0,0.0001726,2]
[342230589,1731603039805,-785.94,0.0001726,2]
[342230591,1731603039814,-500.0,0.0001726,2]
[342230593,1731603039823,-597.24,0.0001726,2]
[342230594,1731603039833,-500.0,0.0001726,2]
[342230595,1731603039843,-500.0,0.0001726,2]
[342230596,1731603039852,-19346.42,0.0001726,2]
[342230597,1731603039861,-500.0,0.0001726,2]
[342230599,1731603039870,-500.0,0.0001726,2]
[342230601,1731603039879,-686.86,0.0001726,2]
[342230602,1731603039889,-500.0,0.0001726,2]
[342230603,1731603039898,-500.0,0.0001726,2]
[342230604,1731603039907,-500.0,0.0001726,2]
[342230605,1731603039917,-500.0,0.0001726,2]
[342230607,1731603039928,-500.0,0.0001726,2]
[342230608,1731603039938,-1898.37,0.0001726,2]
[342230609,1731603039947,-500.0,0.0001726,2]
[342230610,1731603039956,-1643.0,0.0001726,2]
[342230611,1731603039965,-500.0,0.0001726,2]
[342230612,1731603039975,-893.41,0.0001726,2]
[342230614,1731603039984,-742.64,0.0001726,2]
[342230615,1731603039993,-733.54,0.0001726,2]
[342230617,1731603040002,-500.0,0.0001726,2]
[342230618,1731603040012,-500.0,0.0001726,2]
[342230619,1731603040021,-500.0,0.0001726,2]
[342230620,1731603040031,-905.74,0.0001726,2]
[342230621,1731603040041,-500.0,0.0001726,2]
[342230622,1731603040050,-3139.9,0.0001726,2]
[342230623,1731603040060,-500.0,0.0001726,2]
[342230624,1731603040069,-892.41,0.0001726,2]
[342230625,1731603040079,-501.6736776,0.0001726,2]
[342230626,1731603040088,-697.22,0.0001726,2]
[342230627,1731603040098,-500.0,0.0001726,2]
[342230628,1731603040107,-2428.1,0.0001726,2]
[342230629,1731603040116,-1345.81,0.0001726,2]
[342230630,1731603040125,-500.0,0.0001726,2]
[342230631,1731603040135,-1426.31,0.0001726,2]
[342230632,1731603040144,-500.0,0.0001726,2]
[342230633,1731603040154,-656.52,0.0001726,2]
[342230634,1731603040163,-633.54,0.0001726,2]
[342230635,1731603040174,-615.67,0.0001726,2]
[342230636,1731603040184,-874.04,0.0001726,2]
[342230637,1731603040194,-500.0,0.0001726,2]
[342230638,1731603040203,-645.31,0.0001726,2]
[342230639,1731603040212,-895.76,0.0001726,2]
[342230640,1731603040221,-500.0,0.0001726,2]
[342230641,1731603040231,-4076.92,0.0001726,2]
[342230642,1731603040240,-500.0,0.0001726,2]
[342230643,1731603040253,-508.06,0.0001726,2]
[342230644,1731603040262,-500.0,0.0001726,2]
[342230645,1731603040271,-500.0,0.0001726,2]
[342230646,1731603040280,-7324.13,0.0001726,2]
[342230647,1731603040293,-1887.83,0.0001726,2]
[342230648,1731603040308,-500.0,0.0001726,2]
[342230649,1731603040321,-936.41,0.0001726,2]
[342230650,1731603040330,-708.71,0.0001726,2]
[342230651,1731603040340,-1038.09,0.0001726,2]
[342230652,1731603040349,-500.0,0.0001726,2]
[342230653,1731603040359,-3771.07,0.0001726,2]
[342230654,1731603040368,-653.47,0.0001726,2]
[342230655,1731603040377,-500.0,0.0001726,2]
[342230656,1731603040387,-5751.7,0.0001726,2]
[342230657,1731603040398,-279.85304798,0.0001726,2]
[342230658,1731603040407,-287.0544774,0.0001726,2]
[342230659,1731603040417,-821.87,0.0001726,2]
[342230660,1731603040429,-547.05,0.0001726,2]
[342230661,1731603040439,-673.32,0.0001726,2]
[342230662,1731603040448,-500.0,0.0001726,2]
[342230663,1731603040458,-500.0,0.0001726,2]
[342230664,1731603040468,-1668.19,0.0001726,2]
[342230665,1731603040477,-500.0,0.0001726,2]
[342230666,1731603040487,-5808.81,0.0001726,2]
[342230667,1731603040496,-992.56,0.0001726,2]
[342230668,1731603040505,-500.0,0.0001726,2]
[342230669,1731603040514,-150.112233,0.000173,2]
[342230670,1731603040524,-510.88694152,0.00017321,2]
[342230671,1731603040534,-1000.0,0.00017321,2]
[342230672,1731603040544,-1000.0,0.00017321,2]
[342230673,1731603040553,-150.112233,0.000174,2]
[342230674,1731603040563,-500.0,0.00017473,2]
[342230675,1731603040573,-500.0,0.00017473,2]
[342230676,1731603040582,-500.0,0.00017473,2]
[342230677,1731603040592,-406.08248336,0.00017473,2]
[342230678,1731603040602,-500.0,0.00017473,2]
[342230679,1731603040611,-500.0,0.00017473,2]
[342230680,1731603040621,-500.0,0.00017473,2]
[342230681,1731603040631,-500.0,0.00017473,2]
[342230682,1731603040641,-500.0,0.00017473,2]
[342230683,1731603040651,-500.0,0.00017473,2]
[342230684,1731603040660,-500.0,0.00017473,2]
[342230685,1731603040678,-500.66773982,0.00017473,2]
[342230686,1731603040688,-500.0,0.00017473,2]
[342230687,1731603040697,-339.181,0.00017486,2]
[342230688,1731603040707,-447172.85310945,0.000175,2]
[342230689,1731603040984,-393.1647,0.000175,2]
[342230690,1731603040996,-877.55305,0.000175,2]
[342230691,1731603041008,-1183.51323,0.000175,2]
[342230692,1731603041654,-546.95244872,0.00016438,2]
[342230693,1731603041663,-500.0,0.00016438,2]
[342230694,1731603041673,-500.0,0.00016712,2]
[342230695,1731603041686,-500.0,0.00016986,2]
[342230696,1731603041695,-150.112235,0.00017,2]
[342230697,1731603041705,-500.0,0.0001726,2]
[342230698,1731603041714,-390.23098693,0.00017434,2]
[342230699,1731603041724,-2914.02050046,0.000175,2]
[342230700,1731603041735,-899.24201274,0.000175,2]
[342230701,1731603041754,-1048.93962274,0.000175,2]
[342230702,1731603041776,-48868.9,0.000175,2]
[342230719,1731603043342,-500.0,0.00016438,2]
[342230720,1731603043353,-500.0,0.00016438,2]
[342230721,1731603043367,-500.0,0.00017473,2]
[342230722,1731603043376,-4936.31234089,0.000175,2]
[342230723,1731603043388,-8618.55315195,0.000175,2]
[342230724,1731603043400,-415054.333695,0.000175,2]
[342230784,1731603046974,364.0,0.00027,60]
[342230848,1731604232368,-584.78493756,0.00013673,2]
[342230850,1731604232377,-275.56753003,0.00013773,2]
[342230852,1731604232386,-194.76358577,0.00013873,2]
[342230854,1731604232395,-161.97453418,0.00013873,2]
[342230856,1731604232406,-785.56856139,0.00013873,2]
[342230858,1731604232416,-357.144772,0.00013973,2]
[342230860,1731604232426,-985.936965,0.00014236,2]
[342230862,1731604232435,-482.1592848,0.00014308,2]
[342230864,1731604232445,-2511.6171249,0.00014716,2]
[342230866,1731604232455,-227.9443393,0.00014858,2]
[342230868,1731604232464,-300.0,0.00015598,2]
[342230870,1731604232474,-300.0,0.00015598,2]
[342230873,1731604232484,-236.067819,0.00015599,2]
[342230875,1731604232493,-16326.08720498,0.00015599,2]
[342231094,1731604238351,-997.26479348,0.00015599,2]
[342231095,1731604238365,-2928.67713228,0.00015599,2]
[342231096,1731604238376,-1913.29801806,0.00015599,2]
[342231097,1731604238461,-673.85929846,0.00015599,2]
[342231098,1731604238689,-2060.81355274,0.00015599,2]
[342231099,1731604238699,-1723.31392129,0.00016338,2]
[342231100,1731604238708,-3674.1,0.00016338,2]
[342231101,1731604238719,-666.95694478,0.00016437,2]
[342231104,1731604238729,-500.0,0.00016437,2]
[342231106,1731604238739,-380.42535446,0.00016437,2]
[342231108,1731604238749,-500.0,0.00016437,2]
[342231109,1731604238760,-166.82224597,0.00016437,2]
[342231110,1731604238774,-500.0,0.00016437,2]
[342231111,1731604238783,-500.0,0.00016437,2]
[342231112,1731604238793,-283.36105091,0.00016437,2]
[342231113,1731604238803,-500.0,0.00016437,2]
[342231114,1731604238812,-500.0,0.00016437,2]
[342231115,1731604238822,-500.0,0.00016437,2]
[342231116,1731604238832,-500.0,0.00016437,2]
[342231117,1731604238842,-500.0,0.00016437,2]
[342231118,1731604238852,-500.0,0.00016437,2]
[342231119,1731604238863,-500.0,0.00016437,2]
[342231120,1731604238873,-500.0,0.00016437,2]
[342231121,1731604238883,-500.0,0.00016437,2]
[342231122,1731604238893,-500.0,0.00016437,2]
[342231123,1731604238902,-644.22297559,0.00016437,2]
[342231124,1731604238912,-500.0,0.00016437,2]
[342231125,1731604238921,-500.0,0.00016437,2]
[342231126,1731604238931,-500.0,0.00016437,2]
[342231127,1731604238940,-500.0,0.00016437,2]
[342231128,1731604238950,-500.0,0.00016437,2]
[342231129,1731604238959,-631.28689091,0.00016437,2]
[342231130,1731604238969,-500.0,0.00016437,2]
[342231131,1731604238978,-622.33583105,0.00016437,2]
[342231132,1731604238988,-500.0,0.00016437,2]
[342231133,1731604238998,-311.15752371,0.00016437,2]
[342231134,1731604239008,-205.55902351,0.00016437,2]
[342231135,1731604239017,-446.04548765,0.00016437,2]
[342231136,1731604239026,-236.31248083,0.00016437,2]
[342231137,1731604239036,-179.38791836,0.00016437,2]
[342231138,1731604239045,-187.51648973,0.00016437,2]
[342231139,1731604239055,-173.43001742,0.00016437,2]
[342231140,1731604239064,-500.0,0.00016438,2]
[342231141,1731604239074,-500.0,0.00016438,2]
[342231142,1731604239083,-515.34712372,0.00016438,2]
[342231143,1731604239092,-503.91967783,0.00016438,2]
[342231144,1731604239102,-422.00687028,0.00016438,2]
[342231145,1731604239117,-500.0,0.00016438,2]
[342231146,1731604239127,-500.0,0.00016438,2]
[342231147,1731604239136,-501.24274225,0.00016438,2]
[342231148,1731604239145,-500.0,0.00016438,2]
[342231149,1731604239155,-510.4734784,0.00016438,2]
[342231150,1731604239164,-508.63287494,0.00016438,2]
[342231151,1731604239174,-500.76138115,0.00016438,2]
[342231152,1731604239183,-507.68152786,0.00016438,2]
[342231153,1731604239192,-500.48309827,0.00016438,2]
[342231154,1731604239201,-500.0,0.00016438,2]
[342231155,1731604239211,-331.85375742,0.00016438,2]
[342231156,1731604239220,-500.0,0.00016438,2]
[342231157,1731604239229,-500.0,0.00016438,2]
[342231158,1731604239238,-500.0,0.00016438,2]
[342231159,1731604239247,-571.12,0.00016438,2]
[342231160,1731604239256,-500.0,0.00016438,2]
[342231161,1731604239266,-500.0,0.00016438,2]
[342231162,1731604239275,-500.0,0.00016438,2]
[342231163,1731604239284,-500.0,0.00016438,2]
[342231164,1731604239293,-500.0,0.00016438,2]
[342231165,1731604239303,-500.0,0.00016438,2]
[342231166,1731604239312,-500.0,0.00016438,2]
[342231167,1731604239321,-500.0,0.00016438,2]
[342231168,1731604239331,-500.0,0.00016438,2]
[342231169,1731604239340,-500.0,0.00016438,2]
[342231170,1731604239349,-342.1374861,0.00016438,2]
[342231171,1731604239358,-500.0,0.00016438,2]
[342231172,1731604239377,-347.0136326,0.00016438,2]
[342231173,1731604239386,-500.0,0.00016438,2]
[342231174,1731604239395,-500.0,0.00016438,2]
[342231175,1731604239404,-639.74,0.00016438,2]
[342231176,1731604239413,-500.0,0.00016438,2]
[342231177,1731604239423,-500.0,0.00016438,2]
[342231178,1731604239433,-593.78,0.00016438,2]
[342231179,1731604239443,-500.0,0.00016438,2]
[342231180,1731604239452,-500.0,0.00016438,2]
[342231181,1731604239461,-500.0,0.00016438,2]
[342231182,1731604239470,-662.59,0.00016438,2]
[342231183,1731604239479,-672.22,0.00016438,2]
[342231184,1731604239488,-551.79,0.00016438,2]